[Event "*** Titled Tuesday Blitz"]
[Site "Chess.com"]
[Date "2021.04.20"]
[Round "5"]
[White "AlexTriapishko"]
[Black "saikrishnaReturns"]
[Result "1-0"]
[WhiteElo "2904"]
[BlackElo "2675"]
[TimeControl "180+1"]
[EndTime "10:54:32 PDT"]
[Termination "AlexTriapishko won on time"]

1. e4 {[%clk 0:03:00.9]} 1... e5 {[%clk 0:02:59.1]} 2. Nf3 {[%clk 0:02:55.9]}
2... Nc6 {[%clk 0:02:59.2]} 3. Bb5 {[%clk 0:02:55.9]} 3... a6 {[%clk 0:02:59.4]}
4. Ba4 {[%clk 0:02:56.1]} 4... d6 {[%clk 0:02:59.9]} 5. O-O {[%clk 0:02:51.3]}
5... Nf6 {[%clk 0:02:59.6]} 6. c3 {[%clk 0:02:40.8]} 6... b5 {[%clk 0:02:26.1]}
7. Bb3 {[%clk 0:02:38.9]} 7... Be7 {[%clk 0:02:26.3]} 8. d4 {[%clk 0:02:31.3]}
8... Bg4 {[%clk 0:02:23.3]} 9. d5 {[%clk 0:02:07.9]} 9... Na5 {[%clk 0:02:21.7]}
10. Bc2 {[%clk 0:02:08.4]} 10... c6 {[%clk 0:02:14.6]} 11. h3 {[%clk 0:01:56.3]}
11... Bxf3 {[%clk 0:02:11.6]} 12. Qxf3 {[%clk 0:01:56.2]} 12... Qc7 {[%clk
0:02:06.7]} 13. dxc6 {[%clk 0:01:52.1]} 13... Qxc6 {[%clk 0:02:02.1]} 14. Bg5
{[%clk 0:01:46.5]} 14... Nc4 {[%clk 0:01:53.4]} 15. Nd2 {[%clk 0:01:21.7]} 15...
Nxb2 {[%clk 0:01:43.5]} 16. Rab1 {[%clk 0:01:20.9]} 16... Nc4 {[%clk 0:01:32.8]}
17. Nxc4 {[%clk 0:01:20.1]} 17... Qxc4 {[%clk 0:01:33.3]} 18. Bxf6 {[%clk
0:00:41.4]} 18... Bxf6 {[%clk 0:01:34.2]} 19. Bb3 {[%clk 0:00:41.8]} 19... Qc7
{[%clk 0:01:32.8]} 20. c4 {[%clk 0:00:38.9]} 20... bxc4 {[%clk 0:00:53.6]} 21.
Rfc1 {[%clk 0:00:37.6]} 21... O-O {[%clk 0:00:51]} 22. Rxc4 {[%clk 0:00:31.3]}
22... Qa5 {[%clk 0:00:48.1]} 23. Rd1 {[%clk 0:00:28.7]} 23... Be7 {[%clk
0:00:37.2]} 24. Qf5 {[%clk 0:00:24.2]} 24... Ra7 {[%clk 0:00:29.8]} 25. Rc8
{[%clk 0:00:20.2]} 25... Rxc8 {[%clk 0:00:12.7]} 26. Bxf7+ {[%clk 0:00:19.4]}
26... Kf8 {[%clk 0:00:13]} 27. Bb3+ {[%clk 0:00:18.1]} 27... Bf6 {[%clk
0:00:12.5]} 28. Qxc8+ {[%clk 0:00:18.7]} 28... Qd8 {[%clk 0:00:12.7]} 29. Qe6
{[%clk 0:00:18.1]} 29... Qb6 {[%clk 0:00:05.8]} 30. Rxd6 {[%clk 0:00:16.4]} 1-0

[Event "*** Titled Tuesday Blitz"]
[Site "Chess.com"]
[Date "2021.04.20"]
[Round "5"]
[White "RD4ever"]
[Black "I_Enchev"]
[Result "1-0"]
[WhiteElo "2865"]
[BlackElo "2613"]
[TimeControl "180+1"]
[EndTime "10:54:32 PDT"]
[Termination "RD4ever won by resignation"]

1. d4 {[%clk 0:03:00.9]} 1... Nf6 {[%clk 0:02:55.6]} 2. c4 {[%clk 0:03:00.2]}
2... e5 {[%clk 0:02:52.5]} 3. dxe5 {[%clk 0:02:58.7]} 3... Ng4 {[%clk
0:02:52.6]} 4. e3 {[%clk 0:02:55.6]} 4... Nxe5 {[%clk 0:02:50.3]} 5. Nh3 {[%clk
0:02:54.3]} 5... Bb4+ {[%clk 0:02:42.3]} 6. Bd2 {[%clk 0:02:50.7]} 6... Bxd2+
{[%clk 0:02:41.4]} 7. Qxd2 {[%clk 0:02:51.6]} 7... d6 {[%clk 0:02:41]} 8. Nf4
{[%clk 0:02:50.3]} 8... Be6 {[%clk 0:02:36.6]} 9. Nxe6 {[%clk 0:02:22.7]} 9...
fxe6 {[%clk 0:02:37.5]} 10. Be2 {[%clk 0:02:19.5]} 10... Nbc6 {[%clk 0:02:27.7]}
11. Nc3 {[%clk 0:02:18.8]} 11... Qh4 {[%clk 0:02:25.5]} 12. g3 {[%clk
0:02:04.1]} 12... Qe7 {[%clk 0:02:15.2]} 13. f4 {[%clk 0:02:00.7]} 13... Nd7
{[%clk 0:02:14.9]} 14. Bf3 {[%clk 0:02:00.4]} 14... O-O {[%clk 0:02:10.8]} 15.
O-O {[%clk 0:01:51.8]} 15... Nc5 {[%clk 0:02:03.9]} 16. Rab1 {[%clk 0:01:46.4]}
16... a5 {[%clk 0:02:02.8]} 17. Nb5 {[%clk 0:01:46]} 17... e5 {[%clk 0:01:52.3]}
18. Nc3 {[%clk 0:01:39.8]} 18... e4 {[%clk 0:01:47.9]} 19. Nxe4 {[%clk 0:01:27]}
19... Nxe4 {[%clk 0:01:45.5]} 20. Qd5+ {[%clk 0:01:27]} 20... Kh8 {[%clk
0:01:44.9]} 21. Qxe4 {[%clk 0:01:27.1]} 21... Qxe4 {[%clk 0:01:40.5]} 22. Bxe4
{[%clk 0:01:28]} 22... Rfe8 {[%clk 0:01:40.9]} 23. Bxc6 {[%clk 0:01:28.2]} 23...
bxc6 {[%clk 0:01:41.8]} 24. Kf2 {[%clk 0:01:29]} 24... Re4 {[%clk 0:01:37.1]}
25. Rbc1 {[%clk 0:01:27.9]} 25... Rb8 {[%clk 0:01:35.9]} 26. Rc2 {[%clk
0:01:26.6]} 26... Rb4 {[%clk 0:01:34.7]} 27. Rfc1 {[%clk 0:01:26]} 27... a4
{[%clk 0:01:31.3]} 28. Kf3 {[%clk 0:01:25.9]} 28... Re8 {[%clk 0:01:31.6]} 29.
Rd1 {[%clk 0:01:13.8]} 29... Reb8 {[%clk 0:01:29.2]} 30. Rdd2 {[%clk 0:01:14.1]}
30... Kg8 {[%clk 0:01:28.8]} 31. e4 {[%clk 0:01:14.4]} 31... Kf7 {[%clk
0:01:29.3]} 32. g4 {[%clk 0:01:01.9]} 32... Ke6 {[%clk 0:01:28.4]} 33. h4 {[%clk
0:01:01.6]} 33... Rf8 {[%clk 0:01:24.1]} 34. h5 {[%clk 0:00:56.4]} 34... Rfb8
{[%clk 0:01:16.3]} 35. g5 {[%clk 0:00:54.9]} 35... Rf8 {[%clk 0:01:15.8]} 36.
Kg4 {[%clk 0:00:47]} 36... Rf7 {[%clk 0:01:05.8]} 37. Kf3 {[%clk 0:00:43.2]}
37... Rf8 {[%clk 0:01:05.3]} 38. Ke3 {[%clk 0:00:44.1]} 38... Rf7 {[%clk
0:01:04.1]} 39. Rd4 {[%clk 0:00:37]} 39... Rf8 {[%clk 0:00:59.5]} 40. f5+ {[%clk
0:00:23.2]} 40... Ke5 {[%clk 0:00:56.1]} 41. Rcd2 {[%clk 0:00:23.1]} 41... d5
{[%clk 0:00:30.5]} 42. Rxd5+ {[%clk 0:00:20.7]} 1-0

[Event "*** Titled Tuesday Blitz"]
[Site "Chess.com"]
[Date "2021.04.20"]
[Round "5"]
[White "secretsuperstar7"]
[Black "Problematique_99"]
[Result "0-1"]
[WhiteElo "2245"]
[BlackElo "2502"]
[TimeControl "180+1"]
[EndTime "10:54:33 PDT"]
[Termination "Problematique_99 won by resignation"]

1. e4 {[%clk 0:02:58.9]} 1... c5 {[%clk 0:02:55.7]} 2. Nf3 {[%clk 0:02:56]} 2...
e6 {[%clk 0:02:54.7]} 3. d4 {[%clk 0:02:43.4]} 3... cxd4 {[%clk 0:02:54.6]} 4.
Nxd4 {[%clk 0:02:32.7]} 4... a6 {[%clk 0:02:54.3]} 5. Nc3 {[%clk 0:02:30.1]}
5... b5 {[%clk 0:02:53.7]} 6. Be3 {[%clk 0:02:18.2]} 6... Bb7 {[%clk 0:02:50.8]}
7. f3 {[%clk 0:02:00.5]} 7... Nf6 {[%clk 0:02:47.6]} 8. Be2 {[%clk 0:01:50.9]}
8... Qc7 {[%clk 0:02:44.8]} 9. O-O {[%clk 0:01:17.8]} 9... b4 {[%clk 0:02:44.6]}
10. Na4 {[%clk 0:01:14.1]} 10... d5 {[%clk 0:02:44.7]} 11. exd5 {[%clk
0:00:43.3]} 11... Nxd5 {[%clk 0:02:44.4]} 12. Bf2 {[%clk 0:00:43.1]} 12... Bd6
{[%clk 0:02:43.2]} 13. g3 {[%clk 0:00:28.1]} 13... Nd7 {[%clk 0:02:40.3]} 14.
Rc1 {[%clk 0:00:26.8]} 14... O-O {[%clk 0:02:19.7]} 15. c4 {[%clk 0:00:19.1]}
15... bxc3 {[%clk 0:02:11.8]} 16. Nxc3 {[%clk 0:00:19]} 16... Qb8 {[%clk
0:01:55.4]} 17. Ne4 {[%clk 0:00:17.4]} 17... Be5 {[%clk 0:01:50.6]} 18. b3
{[%clk 0:00:07.5]} 18... N7f6 {[%clk 0:01:44.3]} 19. Nc6 {[%clk 0:00:06.6]}
19... Bxc6 {[%clk 0:01:41.4]} 20. Rxc6 {[%clk 0:00:07.5]} 20... Nxe4 {[%clk
0:01:39.7]} 21. fxe4 {[%clk 0:00:08.4]} 21... Nc3 {[%clk 0:01:39.2]} 22. Qc2
{[%clk 0:00:07.5]} 22... Rc8 {[%clk 0:01:31.5]} 23. Rxc8+ {[%clk 0:00:07.2]}
23... Qxc8 {[%clk 0:01:31.5]} 24. Bd3 {[%clk 0:00:07.9]} 24... Qd7 {[%clk
0:01:27]} 25. Rc1 {[%clk 0:00:06.9]} 25... Rd8 {[%clk 0:01:26.3]} 26. Be1 {[%clk
0:00:07]} 26... Qxd3 {[%clk 0:00:45.1]} 27. Bxc3 {[%clk 0:00:06.9]} 27... Qxc2
{[%clk 0:00:45.2]} 28. Rxc2 {[%clk 0:00:07.8]} 28... Rc8 {[%clk 0:00:45.5]} 29.
Bxe5 {[%clk 0:00:06.3]} 29... Rxc2 {[%clk 0:00:45.2]} 30. a4 {[%clk 0:00:06.5]}
30... Re2 {[%clk 0:00:44.1]} 31. Bd6 {[%clk 0:00:04.3]} 31... Rxe4 {[%clk
0:00:44.1]} 32. b4 {[%clk 0:00:04.6]} 32... a5 {[%clk 0:00:41.4]} 33. b5 {[%clk
0:00:03.1]} 33... Rxa4 {[%clk 0:00:42.3]} 34. b6 {[%clk 0:00:03.4]} 34... Ra1+
{[%clk 0:00:42.4]} 35. Kf2 {[%clk 0:00:03.2]} 35... Rb1 {[%clk 0:00:43.3]} 36.
Bc7 {[%clk 0:00:02.3]} 36... a4 {[%clk 0:00:43.7]} 37. Ke3 {[%clk 0:00:01.6]}
37... a3 {[%clk 0:00:43.9]} 38. Kd4 {[%clk 0:00:01.8]} 38... a2 {[%clk
0:00:44.3]} 39. Kc5 {[%clk 0:00:01.9]} 39... a1=Q {[%clk 0:00:43.4]} 0-1

[Event "*** Titled Tuesday Blitz"]
[Site "Chess.com"]
[Date "2021.04.20"]
[Round "5"]
[White "guillembaches"]
[Black "DanielTitichoca"]
[Result "1-0"]
[WhiteElo "2510"]
[BlackElo "2281"]
[TimeControl "180+1"]
[EndTime "10:54:38 PDT"]
[Termination "guillembaches won on time"]

1. e4 {[%clk 0:03:00.9]} 1... c5 {[%clk 0:02:57.1]} 2. Nf3 {[%clk 0:02:59.6]}
2... d6 {[%clk 0:02:57.7]} 3. d4 {[%clk 0:02:59.7]} 3... cxd4 {[%clk 0:02:58.6]}
4. Qxd4 {[%clk 0:03:00.2]} 4... Nf6 {[%clk 0:02:59.5]} 5. c4 {[%clk 0:02:59.4]}
5... Nc6 {[%clk 0:02:58.7]} 6. Qe3 {[%clk 0:02:59.6]} 6... g6 {[%clk 0:02:52.4]}
7. h3 {[%clk 0:02:59.2]} 7... Bg7 {[%clk 0:02:44]} 8. Be2 {[%clk 0:02:59.4]}
8... O-O {[%clk 0:02:44.6]} 9. O-O {[%clk 0:02:59.8]} 9... Be6 {[%clk
0:02:39.2]} 10. Nc3 {[%clk 0:02:59.9]} 10... a5 {[%clk 0:02:25.6]} 11. Rd1
{[%clk 0:02:58.4]} 11... Nd7 {[%clk 0:02:22.8]} 12. Bd2 {[%clk 0:02:52.5]} 12...
Qb6 {[%clk 0:02:22.3]} 13. Qd3 {[%clk 0:02:32.8]} 13... Nde5 {[%clk 0:02:14.2]}
14. Nxe5 {[%clk 0:02:17.4]} 14... Nxe5 {[%clk 0:02:11.6]} 15. Qg3 {[%clk
0:02:11.6]} 15... Nxc4 {[%clk 0:02:08.5]} 16. Bxc4 {[%clk 0:02:11.4]} 16... Bxc4
{[%clk 0:02:09.4]} 17. b3 {[%clk 0:02:02.8]} 17... Be6 {[%clk 0:02:06.2]} 18.
Rac1 {[%clk 0:02:02.7]} 18... Rac8 {[%clk 0:02:04]} 19. Nd5 {[%clk 0:01:53.7]}
19... Bxd5 {[%clk 0:01:59.5]} 20. exd5 {[%clk 0:01:53.9]} 20... Qb5 {[%clk
0:01:52]} 21. Bg5 {[%clk 0:01:41.3]} 21... Qe2 {[%clk 0:01:25.9]} 22. Qg4 {[%clk
0:01:20.7]} 22... Qxf2+ {[%clk 0:01:23.6]} 23. Kxf2 {[%clk 0:01:19.8]} 23...
Rce8 {[%clk 0:00:13.5]} 24. Qd7 {[%clk 0:01:09.4]} 24... f6 {[%clk 0:00:11.6]}
25. Qe6+ {[%clk 0:01:07]} 25... Kh8 {[%clk 0:00:11.4]} 26. Be3 {[%clk
0:01:06.6]} 26... g5 {[%clk 0:00:10.5]} 27. Rc7 {[%clk 0:01:05.5]} 27... f5
{[%clk 0:00:10.9]} 28. Bxg5 {[%clk 0:00:52.2]} 28... Be5 {[%clk 0:00:06.8]} 29.
Rdc1 {[%clk 0:00:47.2]} 29... Rg8 {[%clk 0:00:06.5]} 30. Bxe7 {[%clk 0:00:39.6]}
30... Rg6 {[%clk 0:00:05.6]} 31. Bf6+ {[%clk 0:00:34.6]} 31... Bxf6 {[%clk
0:00:04.6]} 32. Qxe8+ {[%clk 0:00:33.9]} 32... Rg8 {[%clk 0:00:05.5]} 33. Qf7
{[%clk 0:00:26.9]} 33... Bd4+ {[%clk 0:00:05.6]} 34. Kf1 {[%clk 0:00:26.7]}
34... Bg7 {[%clk 0:00:02.3]} 35. Re7 {[%clk 0:00:25.4]} 1-0

[Event "*** Titled Tuesday Blitz"]
[Site "Chess.com"]
[Date "2021.04.20"]
[Round "5"]
[White "Twitch_ElhamBlitz05"]
[Black "Nozdrachev_Leonid"]
[Result "1-0"]
[WhiteElo "2748"]
[BlackElo "2553"]
[TimeControl "180+1"]
[EndTime "10:54:40 PDT"]
[Termination "Twitch_ElhamBlitz05 won on time"]

1. e4 {[%clk 0:03:00.9]} 1... c6 {[%clk 0:02:59.1]} 2. d4 {[%clk 0:03:00.8]}
2... d5 {[%clk 0:02:59]} 3. Nc3 {[%clk 0:03:01.5]} 3... dxe4 {[%clk 0:02:58.5]}
4. Nxe4 {[%clk 0:03:02.4]} 4... Bf5 {[%clk 0:02:57.9]} 5. Ng3 {[%clk 0:03:02.6]}
5... Bg6 {[%clk 0:02:56.4]} 6. h4 {[%clk 0:03:03.2]} 6... h6 {[%clk 0:02:56.2]}
7. Nf3 {[%clk 0:03:03.8]} 7... Nd7 {[%clk 0:02:55.3]} 8. h5 {[%clk 0:03:04.7]}
8... Bh7 {[%clk 0:02:54.9]} 9. Bd3 {[%clk 0:03:05.1]} 9... Bxd3 {[%clk
0:02:55.2]} 10. Qxd3 {[%clk 0:03:05.8]} 10... e6 {[%clk 0:02:55.7]} 11. Bd2
{[%clk 0:03:06.2]} 11... Ngf6 {[%clk 0:02:55.2]} 12. O-O-O {[%clk 0:03:06.4]}
12... Be7 {[%clk 0:02:55.3]} 13. Qe2 {[%clk 0:03:06.4]} 13... O-O {[%clk
0:02:54.4]} 14. Nf1 {[%clk 0:03:05.3]} 14... c5 {[%clk 0:02:50]} 15. g4 {[%clk
0:03:03.6]} 15... cxd4 {[%clk 0:02:36]} 16. g5 {[%clk 0:03:03.6]} 16... Nd5
{[%clk 0:02:29.6]} 17. gxh6 {[%clk 0:02:55]} 17... Nc3 {[%clk 0:02:29.1]} 18.
Bxc3 {[%clk 0:02:30]} 18... dxc3 {[%clk 0:02:26.3]} 19. hxg7 {[%clk 0:02:12.9]}
19... Qb6 {[%clk 0:01:51.4]} 20. gxf8=Q+ {[%clk 0:01:54.3]} 20... Kxf8 {[%clk
0:01:30.2]} 21. bxc3 {[%clk 0:01:35.4]} 21... Rd8 {[%clk 0:01:17.3]} 22. Kd2
{[%clk 0:01:19.8]} 22... Bf6 {[%clk 0:00:23.3]} 23. Ke1 {[%clk 0:01:17.3]} 23...
Bxc3+ {[%clk 0:00:22.1]} 24. N1d2 {[%clk 0:01:17.3]} 24... Nf6 {[%clk
0:00:14.7]} 25. Kf1 {[%clk 0:01:13.5]} 25... Nd5 {[%clk 0:00:11.7]} 26. h6
{[%clk 0:01:09.8]} 26... Ke7 {[%clk 0:00:09.7]} 27. Rh4 {[%clk 0:00:59.9]} 27...
Bf6 {[%clk 0:00:08.9]} 28. Rc4 {[%clk 0:00:48.2]} 28... Nc3 {[%clk 0:00:07.2]}
29. Rxc3 {[%clk 0:00:48.3]} 29... Bxc3 {[%clk 0:00:08.1]} 30. Ne4 {[%clk
0:00:48.6]} 30... Rxd1+ {[%clk 0:00:05.8]} 31. Qxd1 {[%clk 0:00:49.5]} 31...
Qb5+ {[%clk 0:00:04.9]} 32. Qd3 {[%clk 0:00:48.7]} 32... Qxd3+ {[%clk
0:00:02.9]} 33. cxd3 {[%clk 0:00:49.6]} 33... Bh8 {[%clk 0:00:02.9]} 34. h7
{[%clk 0:00:47.3]} 34... f6 {[%clk 0:00:02.3]} 35. Ke2 {[%clk 0:00:42.3]} 35...
Kf7 {[%clk 0:00:02.3]} 36. Nd6+ {[%clk 0:00:42]} 36... Kg6 {[%clk 0:00:02.3]}
37. Nxb7 {[%clk 0:00:41.7]} 37... Kxh7 {[%clk 0:00:02.9]} 38. Nc5 {[%clk
0:00:41.9]} 38... e5 {[%clk 0:00:02.2]} 39. d4 {[%clk 0:00:42.3]} 39... exd4
{[%clk 0:00:01.9]} 40. Nxd4 {[%clk 0:00:43.2]} 40... Kg6 {[%clk 0:00:01.5]} 41.
Nc6 {[%clk 0:00:41.1]} 41... f5 {[%clk 0:00:01.8]} 42. Kd3 {[%clk 0:00:38]} 1-0

[Event "*** Titled Tuesday Blitz"]
[Site "Chess.com"]
[Date "2021.04.20"]
[Round "5"]
[White "AungTZ"]
[Black "DFeco"]
[Result "1-0"]
[WhiteElo "2151"]
[BlackElo "2309"]
[TimeControl "180+1"]
[EndTime "10:54:43 PDT"]
[Termination "AungTZ won on time"]

1. c4 {[%clk 0:03:00.9]} 1... c5 {[%clk 0:02:58.8]} 2. Nf3 {[%clk 0:02:59.2]}
2... Nc6 {[%clk 0:02:56.5]} 3. d4 {[%clk 0:02:59.3]} 3... cxd4 {[%clk
0:02:56.1]} 4. Nxd4 {[%clk 0:03:00.2]} 4... Qb6 {[%clk 0:02:56.3]} 5. Nb5 {[%clk
0:02:57.6]} 5... a6 {[%clk 0:02:50.8]} 6. Be3 {[%clk 0:02:57.6]} 6... Qa5+
{[%clk 0:02:50.4]} 7. N5c3 {[%clk 0:02:55.4]} 7... e6 {[%clk 0:02:48.6]} 8. Nd2
{[%clk 0:02:51.1]} 8... Nf6 {[%clk 0:02:44.5]} 9. h3 {[%clk 0:02:49.7]} 9... Bb4
{[%clk 0:02:42.2]} 10. Qc2 {[%clk 0:02:43.7]} 10... Bxc3 {[%clk 0:02:41.9]} 11.
bxc3 {[%clk 0:02:43.3]} 11... O-O {[%clk 0:02:40.4]} 12. g4 {[%clk 0:02:41.5]}
12... d5 {[%clk 0:02:35.5]} 13. Bg2 {[%clk 0:02:35.9]} 13... Rd8 {[%clk
0:02:14.9]} 14. g5 {[%clk 0:02:32.7]} 14... Ne8 {[%clk 0:02:12.3]} 15. cxd5
{[%clk 0:02:31.4]} 15... exd5 {[%clk 0:02:11]} 16. Nb3 {[%clk 0:02:25.9]} 16...
Qc7 {[%clk 0:02:01.7]} 17. Rd1 {[%clk 0:02:23.5]} 17... g6 {[%clk 0:01:44.4]}
18. Rxd5 {[%clk 0:02:16.2]} 18... Bf5 {[%clk 0:01:42]} 19. Qb2 {[%clk
0:02:04.4]} 19... Rxd5 {[%clk 0:01:36.1]} 20. Bxd5 {[%clk 0:02:04.3]} 20... Rd8
{[%clk 0:01:33.7]} 21. Bg2 {[%clk 0:01:57.9]} 21... Nd6 {[%clk 0:01:30.9]} 22.
O-O {[%clk 0:01:55.5]} 22... Nc4 {[%clk 0:01:28.9]} 23. Qc1 {[%clk 0:01:53.6]}
23... Qc8 {[%clk 0:01:16.6]} 24. Kh2 {[%clk 0:01:45.9]} 24... Ne7 {[%clk
0:01:03.4]} 25. Bd4 {[%clk 0:01:39]} 25... Be6 {[%clk 0:00:57.4]} 26. Qf4 {[%clk
0:01:33.6]} 26... Nf5 {[%clk 0:00:54.8]} 27. Bf6 {[%clk 0:01:31]} 27... Rd7
{[%clk 0:00:43.3]} 28. Nd4 {[%clk 0:01:30.3]} 28... Ncd6 {[%clk 0:00:36.1]} 29.
Nxe6 {[%clk 0:01:25.7]} 29... fxe6 {[%clk 0:00:33.8]} 30. e4 {[%clk 0:01:25.8]}
30... Ng7 {[%clk 0:00:31.6]} 31. Rd1 {[%clk 0:01:18.2]} 31... Nde8 {[%clk
0:00:23]} 32. Rxd7 {[%clk 0:01:13.8]} 32... Qxd7 {[%clk 0:00:22]} 33. Qb8 {[%clk
0:01:13.2]} 33... Kf7 {[%clk 0:00:20.4]} 34. Be5 {[%clk 0:01:13.1]} 34... Qb5
{[%clk 0:00:15]} 35. c4 {[%clk 0:01:03.8]} 35... Qc6 {[%clk 0:00:13.1]} 36. a4
{[%clk 0:01:00.6]} 36... Nh5 {[%clk 0:00:10.8]} 37. a5 {[%clk 0:00:54.4]} 37...
Qd7 {[%clk 0:00:10.5]} 38. c5 {[%clk 0:00:51.9]} 38... Qe7 {[%clk 0:00:10.1]}
39. Bd6 {[%clk 0:00:47.4]} 39... Qd7 {[%clk 0:00:09.5]} 40. e5 {[%clk
0:00:46.6]} 40... Nf4 {[%clk 0:00:09.1]} 41. Bxb7 {[%clk 0:00:45.3]} 41... Qa4
{[%clk 0:00:08.3]} 42. Qd8 {[%clk 0:00:41.7]} 42... Nxd6 {[%clk 0:00:06.2]} 43.
cxd6 {[%clk 0:00:40.6]} 43... Qb3 {[%clk 0:00:02.8]} 44. Qf6+ {[%clk 0:00:39.7]}
44... Kg8 {[%clk 0:00:01.8]} 45. Qxf4 {[%clk 0:00:39.8]} 1-0

[Event "*** Titled Tuesday Blitz"]
[Site "Chess.com"]
[Date "2021.04.20"]
[Round "5"]
[White "elm2007"]
[Black "ural58"]
[Result "1-0"]
[WhiteElo "2790"]
[BlackElo "2460"]
[TimeControl "180+1"]
[EndTime "10:54:45 PDT"]
[Termination "elm2007 won by resignation"]

1. e4 {[%clk 0:02:49.1]} 1... d5 {[%clk 0:02:59.1]} 2. exd5 {[%clk 0:02:46.1]}
2... Qxd5 {[%clk 0:02:59]} 3. Nc3 {[%clk 0:02:39.6]} 3... Qa5 {[%clk 0:02:58.6]}
4. d4 {[%clk 0:02:33.4]} 4... Nf6 {[%clk 0:02:58.4]} 5. Nf3 {[%clk 0:02:34.3]}
5... Nc6 {[%clk 0:02:57.3]} 6. d5 {[%clk 0:02:32]} 6... Nb4 {[%clk 0:02:56.5]}
7. Bb5+ {[%clk 0:02:27.5]} 7... Bd7 {[%clk 0:02:55.9]} 8. Bxd7+ {[%clk
0:02:21.6]} 8... Nxd7 {[%clk 0:02:55]} 9. a3 {[%clk 0:02:21.1]} 9... Nf6 {[%clk
0:02:54.8]} 10. axb4 {[%clk 0:02:12.2]} 10... Qxa1 {[%clk 0:02:54.4]} 11. O-O
{[%clk 0:02:10.1]} 11... Qa6 {[%clk 0:02:53.4]} 12. Re1 {[%clk 0:02:03.3]} 12...
Rd8 {[%clk 0:02:50]} 13. b5 {[%clk 0:02:02.9]} 13... Qd6 {[%clk 0:02:47.3]} 14.
Qd4 {[%clk 0:02:01.1]} 14... Nxd5 {[%clk 0:02:38.8]} 15. Ne4 {[%clk 0:01:51.4]}
15... Qb6 {[%clk 0:02:36.2]} 16. Qa4 {[%clk 0:01:51.2]} 16... e6 {[%clk
0:02:29.5]} 17. c4 {[%clk 0:01:48.5]} 17... Bb4 {[%clk 0:01:50.9]} 18. Rf1
{[%clk 0:01:42.8]} 18... Qa5 {[%clk 0:01:50.6]} 19. Qxa5 {[%clk 0:01:38.7]}
19... Bxa5 {[%clk 0:01:50.5]} 20. cxd5 {[%clk 0:01:39.6]} 20... exd5 {[%clk
0:01:50.2]} 21. Nc5 {[%clk 0:01:39.6]} 21... Bb6 {[%clk 0:01:40.1]} 22. Re1+
{[%clk 0:01:37.8]} 22... Kf8 {[%clk 0:01:39.6]} 23. Bg5 {[%clk 0:01:37.8]} 23...
Ra8 {[%clk 0:01:32.9]} 24. Nd7+ {[%clk 0:01:26.9]} 24... Kg8 {[%clk 0:01:32.1]}
25. Re7 {[%clk 0:01:26.3]} 25... h6 {[%clk 0:01:29]} 26. Bd2 {[%clk 0:01:24.5]}
26... a5 {[%clk 0:01:04.2]} 27. Nxb6 {[%clk 0:01:14]} 27... cxb6 {[%clk
0:01:04.3]} 28. Rxb7 {[%clk 0:01:14.9]} 28... Kh7 {[%clk 0:01:01.7]} 29. Rxf7
{[%clk 0:01:12.2]} 29... Rhf8 {[%clk 0:00:58.5]} 30. Rb7 {[%clk 0:01:11]} 30...
Rab8 {[%clk 0:00:58.5]} 31. Rxb8 {[%clk 0:01:05.6]} 31... Rxb8 {[%clk
0:00:58.5]} 32. Nd4 {[%clk 0:01:06.1]} 32... a4 {[%clk 0:00:48.4]} 33. Nc6
{[%clk 0:01:05.6]} 33... Re8 {[%clk 0:00:42.4]} 34. Be3 {[%clk 0:01:04.3]} 34...
Re4 {[%clk 0:00:33.2]} 35. g3 {[%clk 0:00:56.2]} 35... Rc4 {[%clk 0:00:14]} 36.
Bxb6 {[%clk 0:00:52.8]} 36... Rc1+ {[%clk 0:00:11.8]} 37. Kg2 {[%clk 0:00:48.1]}
37... Rb1 {[%clk 0:00:11.4]} 38. Bd4 {[%clk 0:00:44.1]} 38... a3 {[%clk
0:00:11.4]} 39. bxa3 {[%clk 0:00:41.2]} 39... Rxb5 {[%clk 0:00:12.3]} 40. a4
{[%clk 0:00:42.1]} 40... Rb3 {[%clk 0:00:09.9]} 41. a5 {[%clk 0:00:41.1]} 41...
Ra3 {[%clk 0:00:10.4]} 42. Bb6 {[%clk 0:00:39.8]} 42... Kg6 {[%clk 0:00:10.2]}
43. Ne7+ {[%clk 0:00:40]} 43... Kf6 {[%clk 0:00:09.6]} 44. Nxd5+ {[%clk
0:00:40.9]} 44... Ke5 {[%clk 0:00:10.5]} 45. Nc7 {[%clk 0:00:41]} 45... Kd6
{[%clk 0:00:09.7]} 46. Nb5+ {[%clk 0:00:41]} 1-0

[Event "*** Titled Tuesday Blitz"]
[Site "Chess.com"]
[Date "2021.04.20"]
[Round "5"]
[White "leopato"]
[Black "narutosmith"]
[Result "0-1"]
[WhiteElo "2122"]
[BlackElo "2321"]
[TimeControl "180+1"]
[EndTime "10:54:45 PDT"]
[Termination "narutosmith won by resignation"]

1. Nf3 {[%clk 0:03:00.9]} 1... Nf6 {[%clk 0:02:59.6]} 2. d4 {[%clk 0:02:57.9]}
2... e6 {[%clk 0:02:59.2]} 3. Bg5 {[%clk 0:02:56.6]} 3... h6 {[%clk 0:02:58.4]}
4. Bxf6 {[%clk 0:02:54.8]} 4... Qxf6 {[%clk 0:02:59.3]} 5. e4 {[%clk 0:02:52.9]}
5... d6 {[%clk 0:02:57.3]} 6. Nc3 {[%clk 0:02:52.2]} 6... g6 {[%clk 0:02:47.4]}
7. e5 {[%clk 0:02:41.5]} 7... Qd8 {[%clk 0:02:46.9]} 8. h4 {[%clk 0:02:33.6]}
8... Bg7 {[%clk 0:02:43.4]} 9. Qe2 {[%clk 0:02:27.2]} 9... O-O {[%clk
0:02:18.8]} 10. O-O-O {[%clk 0:02:23.4]} 10... b5 {[%clk 0:02:13.4]} 11. Qxb5
{[%clk 0:02:07.7]} 11... Ba6 {[%clk 0:02:09.6]} 12. Qa4 {[%clk 0:02:01.9]} 12...
Bxf1 {[%clk 0:02:09.4]} 13. Rhxf1 {[%clk 0:02:01.2]} 13... Nd7 {[%clk
0:02:09.8]} 14. Qc6 {[%clk 0:01:49.8]} 14... Rb8 {[%clk 0:01:46]} 15. exd6
{[%clk 0:01:46.8]} 15... cxd6 {[%clk 0:01:43.3]} 16. Qxd6 {[%clk 0:01:44.7]}
16... Rb6 {[%clk 0:01:43.5]} 17. Qa3 {[%clk 0:01:38.2]} 17... Qb8 {[%clk
0:01:32.3]} 18. Rfe1 {[%clk 0:01:20.7]} 18... Rc8 {[%clk 0:01:31.5]} 19. d5
{[%clk 0:01:12.1]} 19... Bf8 {[%clk 0:00:45.3]} 20. Qa5 {[%clk 0:00:50.6]} 20...
Bb4 {[%clk 0:00:41.9]} 21. Qa4 {[%clk 0:00:48.5]} 21... Nc5 {[%clk 0:00:41.6]}
22. dxe6 {[%clk 0:00:38]} 22... Nxa4 {[%clk 0:00:29.3]} 23. exf7+ {[%clk
0:00:36.1]} 23... Kf8 {[%clk 0:00:27.5]} 24. Nxa4 {[%clk 0:00:36.8]} 24... Bxe1
{[%clk 0:00:24.8]} 25. Nxb6 {[%clk 0:00:34.7]} 25... Qxb6 {[%clk 0:00:20.5]} 26.
Rxe1 {[%clk 0:00:30.1]} 26... Qxf2 {[%clk 0:00:18.6]} 27. Nd4 {[%clk 0:00:24.9]}
27... Qxd4 {[%clk 0:00:17.7]} 28. Re8+ {[%clk 0:00:20.2]} 28... Rxe8 {[%clk
0:00:16.9]} 29. fxe8=Q+ {[%clk 0:00:21.1]} 29... Kxe8 {[%clk 0:00:17.8]} 30. c3
{[%clk 0:00:19.7]} 30... Qf2 {[%clk 0:00:17.6]} 31. a3 {[%clk 0:00:17.7]} 31...
Qxg2 {[%clk 0:00:17.9]} 32. Kb1 {[%clk 0:00:18]} 32... Qh1+ {[%clk 0:00:18.1]}
33. Ka2 {[%clk 0:00:18.6]} 33... Qxh4 {[%clk 0:00:18.9]} 34. Kb3 {[%clk
0:00:19]} 34... g5 {[%clk 0:00:19.2]} 35. a4 {[%clk 0:00:19.9]} 35... a5 {[%clk
0:00:19]} 36. Ka3 {[%clk 0:00:19.7]} 36... Qc4 {[%clk 0:00:19]} 37. b4 {[%clk
0:00:20.6]} 37... Qxc3+ {[%clk 0:00:18.4]} 38. Ka2 {[%clk 0:00:21.5]} 38... axb4
{[%clk 0:00:17.9]} 39. a5 {[%clk 0:00:21.2]} 39... Qc2+ {[%clk 0:00:16.2]} 40.
Ka1 {[%clk 0:00:20.8]} 40... b3 {[%clk 0:00:16.5]} 0-1